bitfinex-derivatives/quotes_ETHF0:USTF0_20260221
["timestamp","ask_amount","ask_price","bid_price","bid_amount"]
[1771685880530,0.25134,1989.9,1988.7,4.32830934]
[1771685880531,5.70538657,1989.4,1988.7,4.32830934]
[1771685881232,5.70538657,1989.4,1988.8,5.84913282]
[1771685881427,5.70973291,1989.4,1988.7,4.1896577]
[1771685881627,5.70973291,1989.4,1988.6,10.04323519]
[1771685884024,5.70973291,1989.4,1988.6,4.19410237]
[1771685884230,5.70538657,1989.1,1988.2,4.1896577]
[1771685884727,5.70538657,1989.1,1988.5,5.84913282]
[1771685885132,5.70538657,1989.1,1988.5,5.85520798]
[1771685886933,5.70538657,1989.1,1988.6,5.84913282]
[1771685893146,5.70538657,1989.1,1988.5,4.19573286]
[1771685893346,5.70538657,1989.1,1988.5,9.7953819]
[1771685894041,5.70538657,1989.1,1988.6,5.59964904]
[1771685894249,5.70538657,1989.1,1988.7,5.59964904]
[1771685895953,5.70538657,1989.1,1988.6,9.78930674]
[1771685897452,5.33902351,1989.3,1988.7,5.59964904]
[1771685898656,5.33902351,1989.3,1988.6,5.59964904]
[1771685898857,5.33902351,1989.3,1988.5,9.7953819]
[1771685899560,5.33902351,1989.3,1988.6,5.59964904]
[1771685900453,5.33902351,1989.3,1988.6,5.52804904]
[1771685903162,5.33902351,1989.3,1988.5,4.19573286]
[1771685903764,5.33902351,1989.3,1988.5,9.7953819]
[1771685904362,5.33902351,1989.3,1988.6,5.59964904]
[1771685907468,5.33902351,1989.3,1988.6,9.78930674]
[1771685910267,5.33902351,1989.3,1988.7,5.59964904]
[1771685915872,5.33902351,1989.3,1988.8,5.59964904]
[1771685923890,5.33902351,1989.3,1988.9,5.16000262]
[1771685939905,5.33902351,1989.3,1988.8,6.77814558]
[1771685940101,5.33902351,1989.3,1988.8,5.16000262]
[1771685945810,5.33902351,1989.3,1988.7,4.1896577]
[1771685946009,4.75722603,1989.0,1988.5,2.21497041]
[1771685946206,4.75722603,1989.0,1988.5,0.00607516]
[1771685948811,4.51980223,1988.8,1988.1,4.38524962]
[1771685949607,4.51980223,1988.8,1988.1,4.38907919]
[1771685953016,4.51980223,1988.8,1988.1,4.76875551]
[1771685956019,4.41068795,1988.6,1988.1,0.00382957]
[1771685960822,4.41068795,1988.6,1988.1,4.76875551]
[1771685961222,4.41068795,1988.6,1988.1,0.00382957]
[1771685975531,4.41068795,1988.6,1987.7,1.61814296]
[1771685975532,4.41068795,1988.2,1987.3,4.76492594]
[1771685975725,1.61814296,1988.4,1986.7,6.45]
[1771685975726,4.41068795,1987.9,1987.5,4.76492594]
[1771685975927,4.41068795,1988.3,1987.7,4.76492594]
[1771685976129,4.41068795,1988.6,1987.9,4.76492594]
[1771685976626,4.41609661,1988.6,1987.9,4.77047514]
[1771685981825,4.20537317,1988.3,1987.9,0.0055492]
[1771685982026,4.20537317,1988.3,1987.9,4.28436564]
[1771685982324,1.62355162,1988.6,1987.9,4.28436564]
[1771685982325,4.20537317,1988.5,1987.9,4.28436564]
[1771685983123,4.20537317,1988.5,1987.9,0.0055492]
[1771685983835,4.20537317,1988.3,1987.9,0.0055492]
[1771685991531,4.20537317,1988.3,1987.9,4.28436564]
[1771685996543,4.20537317,1988.4,1987.5,4.27881644]
[1771685996741,4.20537317,1988.3,1987.5,4.27881644]
[1771685997543,4.20537317,1988.3,1987.5,4.28487049]
[1771686000444,4.20537317,1988.1,1987.5,0.00605405]
[1771686001041,4.20537317,1988.1,1987.5,4.28487049]
[1771686001237,6.33307726,1989.0,1987.7,6.1899]
[1771686001444,5.96487152,1989.2,1987.5,0.00605405]
[1771686001445,4.28145883,1989.3,1988.5,0.00971514]
[1771686001840,1.62022893,1989.1,1988.1,1.16648157]
[1771686002143,4.31589333,1989.0,1988.2,6.6155443]
[1771686002444,4.31589333,1989.0,1988.0,1.09761256]
[1771686002445,4.32022802,1989.0,1988.3,6.6155443]
[1771686002741,4.32022802,1989.0,1988.4,7.03528502]
[1771686002938,4.32022802,1989.0,1988.5,7.03528502]
[1771686003140,4.20537317,1988.7,1987.8,4.27881644]
[1771686006145,4.20537317,1988.7,1987.9,4.27881644]
[1771686006336,1.87160893,1989.6,1987.8,4.18919361]
[1771686006337,4.20537317,1989.6,1988.2,4.27881644]
[1771686006539,4.20537317,1990.2,1989.1,1.62022893]
[1771686006740,4.20537317,1990.2,1989.2,4.27881644]
[1771686007444,4.2093697,1990.2,1989.2,4.28533294]
[1771686007839,4.96420069,1989.9,1989.2,0.0065165]
[1771686009246,4.96420069,1989.9,1989.2,5.19218688]
[1771686010550,4.96420069,1989.9,1989.2,0.0065165]
[1771686036469,4.96420069,1989.9,1989.3,6.33974885]
[1771686036673,4.96420069,1989.9,1989.2,0.0065165]
[1771686036870,4.96420069,1989.9,1989.3,6.33970069]
[1771686037070,4.96420069,1989.9,1989.2,0.0065165]
[1771686037372,4.96420069,1989.9,1989.3,6.74645125]
[1771686037675,4.96420069,1989.9,1989.2,0.0065165]
[1771686037971,4.96420069,1989.9,1989.3,6.75110011]
[1771686038171,4.96420069,1989.9,1989.2,0.0065165]
[1771686038371,4.96420069,1989.9,1989.3,6.74365904]
[1771686038572,4.96420069,1989.9,1989.4,6.74365904]
[1771686038773,4.96420069,1989.9,1989.2,0.0065165]
[1771686039073,4.96420069,1989.9,1989.3,6.74283174]
[1771686039273,4.96420069,1989.9,1989.4,6.74283174]
[1771686039473,4.96420069,1989.9,1989.2,0.0065165]
[1771686039674,4.96420069,1989.9,1989.3,6.70494719]
[1771686039870,4.96420069,1989.9,1989.4,6.7049544]
[1771686040076,4.96420069,1989.9,1989.2,0.0065165]
[1771686040268,4.96420069,1989.9,1989.3,6.70787714]
[1771686040574,4.96420069,1989.9,1989.4,6.70787714]
[1771686040868,4.96420069,1989.9,1989.2,0.0065165]
[1771686041073,4.96420069,1989.9,1989.3,6.70776974]
[1771686041273,4.96420069,1989.9,1989.4,6.70776974]
[1771686041474,4.96420069,1989.9,1989.2,0.0065165]
[1771686041775,4.96420069,1989.9,1989.3,6.70767246]
[1771686041975,4.96420069,1989.9,1989.4,6.70767246]
[1771686042175,4.96420069,1989.9,1989.2,0.0065165]
[1771686042377,4.96420069,1989.9,1989.3,6.70759844]
[1771686042576,4.96420069,1989.9,1989.4,6.70759844]
[1771686042777,4.96420069,1989.9,1989.2,0.0065165]
[1771686042973,4.96420069,1989.9,1989.3,6.70776855]
[1771686043177,4.96420069,1989.9,1989.4,6.3083978]
[1771686043379,4.96420069,1989.9,1989.2,4.6951398]
[1771686043580,4.96420069,1989.9,1989.3,6.70800122]
[1771686043881,4.96420069,1989.9,1989.4,6.30861454]
[1771686044075,4.96420069,1989.9,1989.2,4.6951398]
[1771686044275,4.96420069,1989.9,1989.3,6.70792539]
[1771686044478,4.96420069,1989.9,1989.4,6.70792539]
[1771686044677,4.96420069,1989.9,1989.2,4.6951398]
[1771686044878,4.96420069,1989.9,1989.3,6.70789747]
[1771686045082,4.96420069,1989.9,1989.4,6.70789747]
[1771686045382,4.96420069,1989.9,1989.2,4.6951398]
[1771686045584,4.96420069,1989.9,1989.3,6.70802776]
[1771686045885,4.96420069,1989.9,1989.4,6.30863813]
[1771686046073,4.96420069,1989.9,1989.2,4.6951398]
[1771686046277,4.96420069,1989.9,1989.3,6.7080428]
[1771686046474,4.96420069,1989.9,1989.4,6.30865231]
[1771686046681,4.96420069,1989.9,1989.2,4.6951398]
[1771686046884,4.96420069,1989.9,1989.3,6.71041681]
[1771686047185,4.96420069,1989.9,1989.2,4.6951398]
[1771686047389,4.96420069,1989.9,1989.3,6.70349164]
[1771686047582,4.96420069,1989.9,1989.2,4.6951398]
[1771686047782,4.96420069,1989.9,1989.3,6.703442]
[1771686047986,4.96420069,1989.9,1989.2,4.6951398]
[1771686048285,4.96420069,1989.9,1989.3,6.3108957]
[1771686048486,4.96420069,1989.9,1989.2,4.6951398]
[1771686048686,4.96420069,1989.9,1989.3,6.31066142]
[1771686048888,4.96420069,1989.9,1989.2,4.6951398]
[1771686049086,4.96420069,1989.9,1989.3,6.31033784]
[1771686049287,4.96420069,1989.9,1989.2,4.6951398]
[1771686049486,4.96420069,1989.9,1989.3,6.30925248]
[1771686049687,4.96420069,1989.9,1989.2,4.6951398]
[1771686049988,4.96420069,1989.9,1989.3,6.30915068]
[1771686050188,4.96420069,1989.9,1989.2,4.6951398]
[1771686050386,4.96420069,1989.9,1989.3,6.31335982]
[1771686050587,4.96420069,1989.9,1989.2,4.6951398]
[1771686050782,4.96420069,1989.9,1989.3,6.31336671]
[1771686050985,4.96420069,1989.9,1989.2,4.6951398]
[1771686051184,4.96420069,1989.9,1989.3,6.31335983]
[1771686051385,4.96420069,1989.9,1989.2,4.6951398]
[1771686051589,4.96420069,1989.9,1989.3,6.31336071]
[1771686051792,4.96420069,1989.9,1989.2,4.6951398]
[1771686051989,4.96420069,1989.9,1989.3,6.31333871]
[1771686052189,4.96420069,1989.9,1989.2,4.6951398]
[1771686052389,4.96420069,1989.9,1989.3,6.31334149]
[1771686052591,4.96420069,1989.9,1989.2,4.6951398]
[1771686052794,4.96420069,1989.9,1989.3,6.31333552]
[1771686052992,4.96420069,1989.9,1989.2,4.6951398]
[1771686053291,4.96420069,1989.9,1989.3,6.31333848]
[1771686053493,4.96420069,1989.9,1989.2,4.6951398]
[1771686053694,4.96420069,1989.9,1989.3,6.31357249]
[1771686053894,4.96420069,1989.9,1989.2,4.6951398]
[1771686054194,4.96420069,1989.9,1989.3,6.31357184]
[1771686054396,4.96420069,1989.9,1989.2,4.6951398]
[1771686054593,4.96420069,1989.9,1989.3,6.31358451]
[1771686054794,4.96420069,1989.9,1989.2,4.6951398]
[1771686054993,4.96420069,1989.9,1989.3,6.31421859]
[1771686055294,4.96420069,1989.9,1989.2,4.6951398]
[1771686055491,4.96420069,1989.9,1989.3,6.31496862]
[1771686055694,4.96420069,1989.9,1989.2,4.6951398]
[1771686055892,4.96420069,1989.9,1989.3,6.31495162]
[1771686056195,4.96420069,1989.9,1989.2,4.6951398]
[1771686056395,4.96420069,1989.9,1989.3,6.31494744]
[1771686056694,4.96420069,1989.9,1989.2,4.6951398]
[1771686056886,4.96420069,1989.9,1989.3,6.31505234]
[1771686057091,4.96420069,1989.9,1989.2,4.6951398]
[1771686057289,4.96420069,1989.9,1989.3,6.31505039]
[1771686057493,4.96420069,1989.9,1989.2,4.6951398]
[1771686057696,4.96420069,1989.9,1989.3,6.31508237]
[1771686057992,4.96420069,1989.9,1989.2,4.6951398]
[1771686058189,4.96420069,1989.9,1989.3,6.31512849]
[1771686058391,4.96420069,1989.9,1989.2,4.6951398]
[1771686058593,4.96420069,1989.9,1989.3,5.88326454]
[1771686058794,5.10721253,1989.7,1989.2,0.0065165]
[1771686062798,5.10721253,1989.7,1989.4,4.6886233]
[1771686063097,5.10721253,1989.9,1989.4,4.6886233]
[1771686063301,0.00399653,1990.2,1989.2,0.0065165]
[1771686063302,5.10721253,1990.1,1989.6,4.6886233]
[1771686063902,5.11120906,1990.2,1989.6,4.6886233]
[1771686071003,4.87480033,1990.1,1989.4,5.14442671]
[1771686074806,4.87480033,1989.7,1989.2,0.0065165]
[1771686076108,4.87480033,1989.7,1989.2,5.15094321]
[1771686076310,4.87480033,1989.7,1989.2,0.0065165]
[1771686079113,4.87480033,1989.7,1989.2,5.15094321]
[1771686083509,4.87480033,1989.7,1989.2,0.0065165]
[1771686083714,4.87480033,1989.7,1989.2,5.15094321]
[1771686089215,4.87480033,1990.1,1989.2,5.15094321]
[1771686089416,4.87480033,1990.1,1989.5,5.14442671]
[1771686097826,0.00399653,1990.2,1989.7,4.88782191]
[1771686098324,4.87501877,1990.2,1989.7,4.88782191]
[1771686119244,4.87501877,1990.2,1989.4,4.88782191]
[1771686119446,4.87102224,1990.1,1989.3,4.88782191]
[1771686121847,4.87501877,1990.2,1989.4,4.88782191]
[1771686122054,0.00399653,1990.2,1989.4,4.88782191]
[1771686124054,0.00399653,1990.2,1989.5,4.88782191]
[1771686124354,0.00399653,1990.2,1989.6,4.88782191]
[1771686126553,4.87102224,1990.5,1989.6,4.88782191]
[1771686126947,4.87102224,1990.6,1989.6,6.50485908]
[1771686127155,4.87102224,1990.6,1989.7,4.88782191]
[1771686127354,4.87536522,1990.6,1989.7,4.88782191]
[1771686127551,0.00434298,1990.6,1989.7,4.88782191]
[1771686128258,0.00434298,1990.6,1989.6,5.80623078]
[1771686128259,0.00434298,1990.6,1990.0,4.81171736]
[1771686128557,4.92638499,1991.0,1990.0,4.81171736]
[1771686128958,4.92638499,1991.0,1990.1,4.81171736]
[1771686129157,4.92638499,1991.2,1990.1,4.81171736]
[1771686129360,4.93161808,1991.2,1990.1,4.81171736]
[1771686131263,4.94136529,1991.0,1990.1,4.81171736]
[1771686131462,4.94136529,1990.8,1990.0,4.77070932]
[1771686135170,4.94136529,1990.5,1989.5,4.77070932]
[1771686147177,4.94136529,1990.2,1989.5,4.77070932]
[1771686155979,4.94136529,1989.9,1989.2,0.0065165]
[1771686156281,4.94136529,1989.9,1989.3,4.77070932]
[1771686165891,4.83692986,1989.8,1989.3,4.77070932]
[1771686166086,4.84192056,1989.8,1989.3,4.77070932]
[1771686178705,4.83692986,1989.6,1989.2,4.59842453]
[1771686180608,4.83692986,1989.2,1988.8,4.59190803]
[1771686181104,6.45493512,1989.3,1988.8,4.59190803]
[1771686181406,4.83692986,1989.1,1988.5,4.59190803]
[1771686181608,4.83692986,1989.1,1988.5,4.59805097]
[1771686184205,4.83692986,1988.9,1988.5,4.59805097]
[1771686184406,4.83692986,1988.7,1988.3,4.59190803]
[1771686185411,4.83692986,1988.7,1988.3,4.59765902]
[1771686186511,4.83692986,1988.7,1988.3,0.00575099]
[1771686186709,4.83692986,1988.7,1987.7,4.18919361]
[1771686186710,4.83692986,1988.5,1987.7,4.59190803]
[1771686187112,4.83692986,1988.3,1987.7,4.59190803]
[1771686187610,4.84290577,1988.3,1987.7,4.59591588]
[1771686189108,4.58914266,1988.1,1987.7,4.59591588]
[1771686194608,4.52311913,1988.9,1988.1,4.54634927]
[1771686195017,4.52311913,1988.9,1988.3,4.54634927]
[1771686195618,4.52913992,1988.9,1988.3,4.54634927]
[1771686197115,0.00602079,1988.9,1988.3,4.54634927]
[1771686198419,4.52913992,1988.9,1988.3,4.54634927]
[1771686202225,4.52311913,1988.7,1987.9,4.54634927]
[1771686202822,4.52311913,1988.5,1987.9,4.54634927]
[1771686209225,0.2515,1988.7,1987.9,4.54634927]
[1771686209226,4.52311913,1988.3,1987.9,4.54634927]
[1771686209430,6.14112439,1988.4,1987.9,4.54634927]
[1771686210525,4.52311913,1988.3,1987.9,4.54634927]
[1771686217228,4.52311913,1988.3,1987.7,4.55035712]
[1771686218331,4.50548665,1988.1,1987.7,4.55035712]
[1771686220732,4.50548665,1988.2,1987.7,4.55035712]
[1771686223231,4.50548665,1988.0,1987.7,0.00400785]
[1771686223434,4.50548665,1988.0,1987.5,4.55927164]
[1771686224435,4.50548665,1988.0,1987.5,4.56554834]
[1771686225336,1.61800526,1988.1,1987.5,4.56554834]
[1771686225536,4.50548665,1988.2,1987.6,4.55927164]
[1771686225737,4.50548665,1988.3,1987.6,4.55927164]
[1771686232536,4.50548665,1988.2,1987.6,4.55927164]
[1771686233138,4.50548665,1988.1,1987.6,4.55927164]
[1771686233341,4.50548665,1988.1,1987.5,4.56554834]
[1771686234442,4.50548665,1988.0,1987.5,4.56554834]
[1771686238848,4.215575,1988.1,1987.5,4.56554834]
[1771686239251,8.72106165,1988.1,1987.5,4.56554834]
[1771686240255,4.215575,1988.2,1987.5,4.56554834]
[1771686240455,8.72106165,1988.3,1987.5,4.56554834]
[1771686241348,4.50548665,1988.2,1987.5,4.56554834]
[1771686243157,8.72106165,1988.2,1987.5,4.56554834]
[1771686245857,8.72106165,1988.3,1987.5,4.56554834]
[1771686248155,4.215575,1988.3,1987.5,6.18583586]
[1771686248358,8.363242,1988.3,1987.6,4.13138625]
[1771686249261,4.147667,1988.2,1987.6,4.13138625]
[1771686267270,4.15810694,1988.1,1987.6,4.13138625]
[1771686271471,4.15810694,1988.1,1987.5,0.0062767]
[1771686271668,4.15810694,1988.0,1987.5,4.16783722]
[1771686272072,4.15810694,1988.0,1987.5,0.0062767]
[1771686272574,4.15810694,1988.0,1987.5,4.16783722]
[1771686278279,4.215575,1988.1,1987.5,4.16783722]
[1771686278479,4.215575,1988.3,1987.6,4.17238063]
[1771686278680,4.215575,1988.4,1987.6,4.17238063]
[1771686279081,8.60701652,1988.5,1987.7,4.17238063]
[1771686279477,4.39144152,1988.4,1987.7,4.17238063]
[1771686285179,4.39144152,1988.3,1987.7,4.17238063]
[1771686286083,4.39144152,1988.2,1987.7,4.17238063]
[1771686286582,4.39144152,1988.2,1987.5,4.17865733]
[1771686287983,4.39144152,1988.1,1987.5,4.17865733]
[1771686296083,4.39144152,1988.2,1987.5,5.79928045]
[1771686296387,4.39144152,1988.2,1987.6,4.17238063]
[1771686296590,4.39144152,1988.1,1987.6,4.17238063]
[1771686300191,4.215575,1988.3,1987.6,4.17238063]
[1771686300386,4.39144152,1988.3,1987.8,4.17238063]
[1771686300583,4.39144152,1988.5,1987.8,4.17238063]
[1771686301488,6.01206464,1988.4,1987.8,4.17238063]
[1771686301692,4.39144152,1988.3,1987.8,4.17238063]
[1771686306391,4.39144152,1988.3,1987.5,0.0062767]
[1771686306595,4.39144152,1987.9,1987.6,4.17238063]
[1771686307095,4.39144152,1988.1,1987.6,4.17238063]
[1771686316603,4.39144152,1988.1,1987.6,4.08238063]
[1771686329716,4.3726431,1988.2,1987.6,4.08238063]
[1771686330116,4.3726431,1988.1,1987.6,4.08238063]
[1771686334517,8.5882181,1988.3,1987.6,4.08238063]
[1771686335822,4.3726431,1988.2,1987.6,4.08238063]
[1771686338324,8.30461876,1988.3,1987.6,4.08238063]
[1771686338924,8.30461876,1988.4,1987.8,3.88858419]
[1771686340022,4.08904376,1988.3,1987.8,3.88858419]
[1771686347130,4.08904376,1988.3,1987.5,4.16287979]
[1771686347131,4.08904376,1988.2,1987.6,3.88858419]
[1771686350126,4.08904376,1988.2,1987.5,8.0970242]
[1771686350332,4.08904376,1988.1,1987.5,3.89486089]
[1771686357435,4.08904376,1988.0,1987.5,0.0062767]
[1771686357635,4.08904376,1988.0,1987.2,4.20216331]
[1771686357636,4.08904376,1987.9,1987.2,3.88858419]
[1771686358226,4.08904376,1987.9,1987.0,4.20216331]
[1771686358227,1.62034732,1987.7,1987.1,3.88858419]
[1771686358432,4.08904376,1987.6,1987.1,3.88858419]
[1771686358631,4.08904376,1987.6,1987.1,0.00526027]
[1771686359137,4.08904376,1987.6,1987.1,3.89384446]
[1771686359337,4.08904376,1987.8,1987.1,3.89384446]
[1771686361935,4.08904376,1987.7,1987.1,3.89384446]
[1771686362133,1.62034732,1987.8,1986.6,6.20027874]
[1771686362134,4.08904376,1987.4,1986.8,3.88858419]
[1771686363137,4.09321828,1987.4,1986.8,3.89362767]
[1771686363538,4.09321828,1987.4,1986.7,3.88858419]
[1771686364539,4.09321828,1987.4,1986.7,3.89222595]
[1771686365039,4.09321828,1987.4,1986.7,0.00364176]
[1771686365833,4.08904376,1987.1,1986.1,3.88858419]
[1771686366837,4.08904376,1987.1,1986.1,3.89352637]
[1771686369941,0.00417452,1987.4,1986.1,3.89352637]
[1771686369942,4.05853844,1987.3,1986.1,3.89352637]
[1771686370139,0.00417452,1987.4,1986.4,4.00201608]
[1771686370447,3.93210218,1987.4,1986.4,4.00201608]
[1771686371242,0.00417452,1987.4,1986.4,5.6223634]
[1771686371445,0.00417452,1987.4,1986.5,3.91137873]
[1771686371644,3.92792766,1987.6,1986.5,3.91137873]
[1771686372649,3.93220179,1987.6,1986.5,3.91137873]
[1771686373339,3.92792766,1987.4,1986.5,3.91137873]
[1771686375939,3.92792766,1987.5,1986.5,3.91137873]
[1771686379148,0.00427413,1987.6,1986.5,3.91137873]
[1771686379554,3.93220179,1987.6,1986.5,3.91137873]
[1771686380253,3.93220179,1987.6,1986.6,3.91137873]
[1771686387255,3.93220179,1987.6,1986.7,3.91137873]
[1771686398564,3.93220179,1987.6,1986.8,3.87000642]
[1771686400171,3.76294223,1987.5,1986.8,3.87000642]
[1771686400368,0.00427413,1987.6,1987.1,3.87000642]
[1771686400670,3.76294223,1987.7,1987.1,3.87000642]
[1771686401666,3.76721054,1987.7,1987.1,3.87000642]
[1771686408878,0.00426831,1987.7,1987.1,3.87000642]
[1771686409073,3.76721054,1987.7,1987.1,3.87000642]
[1771686411777,0.00426831,1987.7,1987.1,3.87000642]
[1771686417583,3.76721054,1987.7,1987.1,3.87000642]
[1771686422191,0.00426831,1987.7,1987.1,3.87000642]
[1771686422385,0.00426831,1987.7,1987.0,5.81936704]
[1771686422386,0.00426831,1987.7,1987.3,3.87000642]
[1771686422586,3.76294223,1987.9,1987.3,3.87000642]
[1771686422989,3.76294223,1988.1,1987.5,3.87000642]
[1771686423387,3.76294223,1988.4,1987.7,3.87000642]
[1771686423691,3.76294223,1988.3,1987.7,3.87490409]
[1771686423890,3.76294223,1988.1,1987.7,0.00489767]
[1771686424288,3.76294223,1988.1,1987.7,3.87490409]
[1771686427697,4.08904409,1988.3,1987.7,3.87490409]
[1771686435602,1.62091161,1988.0,1987.7,0.00489767]
[1771686435809,4.04367831,1987.7,1987.4,3.96964925]
[1771686436207,8.23704108,1988.3,1987.5,3.96964925]
[1771686436507,4.04367831,1988.3,1987.5,3.96964925]
[1771686436704,4.04367831,1988.3,1987.5,3.9759263]
[1771686436902,4.04367831,1987.9,1987.5,0.00627705]
[1771686437697,4.04367831,1987.9,1987.5,3.9759263]
[1771686453521,7.94455167,1988.4,1987.7,3.96964925]
[1771686453522,4.04367831,1988.3,1987.7,3.96964925]
[1771686463425,3.93325688,1988.4,1987.7,3.96964925]
[1771686464727,1e-08,1988.4,1988.1,3.80749908]
[1771686465026,3.92855621,1988.6,1988.1,3.80749908]
[1771686465919,3.93362303,1988.6,1988.1,3.80749908]
[1771686466120,0.00506682,1988.6,1988.1,3.80749908]
[1771686466321,4.18001621,1989.0,1988.3,3.80749908]
[1771686466526,3.92855621,1989.0,1988.3,3.80749908]
[1771686466722,3.92855621,1989.0,1988.5,3.80749908]
[1771686466918,3.92855621,1989.1,1988.5,3.80749908]
[1771686467428,3.92855621,1989.1,1988.1,4.22222194]
[1771686467429,0.00443551,1989.1,1988.7,3.80749908]
[1771686467726,3.92855621,1989.2,1988.7,3.80749908]
[1771686468122,3.92855621,1989.4,1988.7,3.80749908]
[1771686468628,3.93260131,1989.4,1988.7,3.80749908]
[1771686469217,3.93260131,1989.4,1988.9,3.80749908]
[1771686469419,3.93260131,1989.4,1988.9,3.81396707]
[1771686470124,3.92855621,1989.8,1988.9,3.81396707]
[1771686470818,3.92855621,1989.8,1989.0,3.80749908]
[1771686471033,1.61793066,1989.5,1988.9,0.00646799]
[1771686471222,3.92855621,1989.4,1988.9,0.00646799]
[1771686473628,3.92855621,1989.4,1988.9,3.81396707]
[1771686476030,3.92855621,1989.4,1988.7,3.80749908]
[1771686477030,3.92855621,1989.4,1988.7,3.81144145]
[1771686477430,3.92855621,1989.5,1988.7,3.81144145]
[1771686487736,3.80746726,1989.2,1988.5,3.82303757]
[1771686488638,3.80746726,1989.2,1988.5,3.82802723]
[1771686488936,3.80746726,1989.5,1988.5,3.82802723]
[1771686494250,3.80746726,1989.5,1988.6,4.02554684]
[1771686494743,1.61793066,1989.6,1988.5,4.0305365]
[1771686494744,3.74383292,1989.1,1988.5,4.0305365]
[1771686513759,3.74383292,1989.1,1988.5,0.00498966]
[1771686513956,3.74383292,1988.9,1988.2,4.22222194]
[1771686514262,3.74383292,1988.9,1988.1,4.02554684]
[1771686514961,3.74383292,1988.9,1988.1,4.0306196]
[1771686517164,3.74383292,1988.9,1988.1,0.00507276]
[1771686517464,3.74383292,1988.6,1987.8,4.02554684]
[1771686518360,3.74383292,1988.6,1987.8,4.02907645]
[1771686521567,3.64948561,1988.7,1987.9,3.77864032]
[1771686521768,3.64948561,1989.2,1988.0,3.77864032]
[1771686522268,3.64948561,1989.2,1988.1,3.77864032]
[1771686523172,3.64948561,1989.0,1988.1,3.77864032]
[1771686523772,3.64948561,1988.7,1987.9,3.77864032]
[1771686524669,3.64948561,1989.0,1987.9,3.77864032]
[1771686525572,3.64948561,1989.0,1988.1,3.77864032]
[1771686531981,3.64948561,1989.0,1988.2,3.77864032]
[1771686534586,3.64948561,1988.8,1988.1,5.39777007]
[1771686534987,3.64948561,1988.8,1988.2,3.77864032]
[1771686541989,3.64948561,1988.8,1988.1,3.77864032]
[1771686543690,3.64948561,1988.8,1988.1,5.39777007]
[1771686543891,3.64948561,1988.8,1988.2,3.77864032]
[1771686549693,3.745473,1988.6,1988.0,7.80093614]
[1771686549893,3.745473,1988.6,1988.1,3.5787142]
[1771686551195,3.745473,1988.6,1988.2,3.85513575]
[1771686554596,3.745473,1988.6,1988.0,4.22222194]
[1771686554795,3.745473,1988.6,1988.0,8.07735769]
[1771686555297,3.745473,1988.6,1988.1,3.85513575]
[1771686557688,3.745473,1988.6,1988.0,8.07735769]
[1771686562699,3.745473,1988.6,1988.1,3.85513575]
[1771686578415,4.20826511,1988.8,1988.2,3.75146231]
[1771686578416,3.64567349,1988.8,1988.2,3.75146231]
[1771686588215,1.61912975,1988.7,1988.2,3.75146231]
[1771686588420,3.64567349,1988.6,1988.2,3.75146231]
[1771686591225,3.64567349,1988.6,1988.0,4.22222194]
[1771686591226,4.21608704,1989.1,1988.6,3.50413548]
[1771686591526,3.64567349,1989.7,1988.9,3.50413548]
[1771686591726,3.65119477,1989.8,1989.3,3.50413548]
[1771686591921,3.65119477,1989.8,1989.3,3.50995627]
[1771686592924,1.8688377,1990.4,1989.3,3.50995627]
[1771686592925,3.64567349,1990.0,1989.3,3.50995627]
[1771686593623,3.64567349,1990.3,1989.3,3.50995627]
[1771686593823,3.64567349,1990.1,1989.3,3.50995627]
[1771686594026,3.6513971,1990.1,1989.3,3.50995627]
[1771686605041,3.6513971,1990.1,1989.4,3.27366892]
[1771686605343,0.00572361,1990.1,1989.4,3.27366892]
[1771686605541,3.6513971,1990.1,1989.4,3.27366892]
[1771686606837,0.00572361,1990.1,1989.4,3.27366892]
[1771686607747,3.63508859,1990.1,1989.3,0.00582079]
[1771686608043,3.63508859,1990.1,1989.3,3.25315248]
[1771686612343,3.45645616,1989.9,1989.3,0.00582079]
[1771686612846,3.45645616,1989.9,1989.2,3.21119448]
[1771686612847,3.45645616,1989.9,1989.1,3.21119448]
[1771686613644,3.45645616,1989.6,1989.1,0.00575398]
[1771686613850,3.45645616,1989.6,1988.8,3.20874959]
[1771686614742,3.45645616,1989.6,1988.8,3.21256306]
[1771686615147,3.45645616,1989.6,1988.8,0.00381347]
[1771686615851,3.45645616,1989.3,1988.4,3.12117502]
[1771686617150,3.45645616,1989.3,1988.4,3.12488085]
[1771686642267,3.45645616,1989.3,1988.5,2.73493441]
[1771686645272,3.45645616,1989.3,1988.5,6.93144743]
[1771686645879,3.45645616,1989.3,1988.6,2.65543647]
[1771686646571,3.45645616,1989.3,1988.5,2.65503262]
[1771686647275,3.45645616,1989.3,1988.4,6.84266428]
[1771686647475,3.45645616,1989.3,1988.4,4.20021885]
[1771686649678,3.45645616,1989.3,1988.4,6.77973928]
[1771686653783,3.45645616,1989.3,1988.4,2.58322626]
[1771686653983,3.3016201,1989.0,1988.4,2.58322626]
[1771686654386,3.3016201,1989.0,1988.4,0.00370583]
[1771686666188,3.3016201,1989.0,1988.4,2.37511289]
[1771686669192,3.3016201,1989.0,1988.5,2.32860929]
[1771686669394,7.90994982,1989.5,1989.0,2.33471766]
[1771686669395,2.96980171,1989.5,1989.0,2.33471766]
[1771686669892,2.96980171,1989.8,1989.0,2.33471766]
[1771686670195,2.96980171,1989.8,1989.2,2.31412794]
[1771686671192,3.10928869,1989.6,1988.9,2.30321463]
[1771686679300,1.61923467,1989.7,1988.6,4.19651302]
[1771686679301,3.10928869,1989.4,1988.6,2.27005251]
[1771686679491,3.10928869,1989.2,1988.6,2.27005251]
[1771686687804,3.10928869,1989.0,1988.4,0.00370583]
[1771686688003,3.10928869,1988.8,1988.4,0.00370583]
[1771686688507,3.10928869,1988.8,1988.3,2.20397229]
[1771686689408,3.10928869,1988.8,1988.3,2.21040915]
[1771686697114,7.93817406,1989.5,1987.8,6.20027874]
[1771686697115,3.36076869,1988.9,1987.8,8.2711593]
[1771686697319,3.10928869,1988.3,1987.8,2.07088056]
[1771686697612,3.10928869,1988.5,1987.9,2.07094721]
[1771686698218,9.52918449,1989.6,1987.9,2.07094721]
[1771686698219,5.88304581,1989.7,1987.9,8.26607995]
[1771686698414,3.1150161,1989.8,1988.9,1.61923467]
[1771686698619,1.61923467,1989.7,1988.7,5.82606253]
[1771686698819,3.1150161,1989.6,1988.7,5.82606253]
[1771686699319,3.12104017,1989.6,1988.7,5.82606253]
[1771686700918,3.12104017,1989.6,1988.7,1.61923467]
[1771686703124,3.12104017,1989.6,1988.5,5.82606253]
[1771686703125,3.15991878,1989.4,1988.5,5.82606253]
[1771686704026,3.15991878,1989.4,1988.5,1.61923467]
[1771686709132,3.15991878,1989.4,1988.5,5.82606253]
[1771686710334,3.15991878,1989.4,1988.7,1.61923467]
[1771686710628,3.15991878,1989.4,1988.9,1.61923467]
[1771686710829,3.15991878,1989.4,1988.7,1.61923467]
[1771686711233,3.15991878,1989.4,1988.5,5.82606253]
[1771686712539,3.15991878,1989.4,1988.5,1.61923467]
[1771686713340,3.15991878,1989.4,1988.7,1.61923467]
[1771686713541,3.15991878,1989.4,1988.5,1.61923467]
[1771686714046,3.15991878,1989.4,1988.4,4.20682786]
[1771686715439,3.15991878,1989.4,1988.5,4.20682786]